Cogmind - Beta 13 @@@ ROGUE MODE // 2024.03.15 @ 15:43:52 Player: Oldman Pu Result: Destroyed by G-34 Mercenary with Small Laser Performance ------------- Evolutions (0) 0 Regions Visited (1) 200 Robots Destroyed (10) 50 Value Destroyed (236) 236 Prototype IDs (0) 0 Alien Tech Used (0) 0 Bonus (0) 0 TOTAL SCORE: 486 Bonus ------- None Cogmind --------- Core Integrity 0/250 Matter 248/300 Energy 98/100 System Corruption 0% Temperature Cool (10) Movement Hovering (56) Location -10/Materials Parts ------- > --- POWER (1) -------- (None) > --- PROPULSION (2) --- Hover Unit Hover Unit > --- UTILITY (2) ------ Small Storage Unit > --- WEAPON (2) ------- (None) > --- INVENTORY (8) ---- Ion Engine Ion Engine Heat Sink High-capacity Storage Unit Large Battery (200) Peak State ------------ > --- POWER ------------ Light Nuclear Core > --- PROPULSION ------- Wheel Compact Wheel > --- UTILITY ---------- Small Storage Unit > --- WEAPON ----------- Medium Laser Light Assault Rifle > --- INVENTORY -------- Ion Engine [Rating: 8] Favorites ----------- Power Light Nuclear Core Engine Ion Engine Power Core Light Nuclear Core Propulsion Wheel Wheel Wheel Hover Unit Hover Unit Utility Small Storage Unit Storage Small Storage Unit Weapon Medium Laser Energy Gun Medium Laser Ballistic Gun Light Assault Rifle Launcher Grenade Launcher Build | -11 -10 ------- Run | Yrd Mat Slots Evolved . | . . Power . | . . Propulsion . | . . Utility . | . . Weapon . | . . Parts Attached 11 | 5 6 Power 2 | 1 1 Engine 1 | 1 . Core 1 | . 1 Reactor . | . . Propulsion 4 | 2 2 Treads . | . . Leg . | . . Wheel 2 | 2 . Hover 2 | . 2 Flight . | . . Utility 2 | . 2 Device . | . . Storage 2 | . 2 Processor . | . . Hackware . | . . Protection . | . . Artifact . | . . Weapon 3 | 2 1 Energy Gun 1 | 1 . Energy Cannon . | . . Ballistic Gun 1 | 1 . Ballistic Cannon . | . . Launcher 1 | . 1 Special Weapon . | . . Impact Weapon . | . . Slashing Weapon . | . . Piercing Weapon . | . . Special Melee Weapon . | . . Unidentified Prototypes . | . . Parts Lost 6 | . 6 Power 1 | . 1 Propulsion 2 | . 2 Utility . | . . Weapon 3 | . 3 Highest Loss Streak 6 | . 6 To Critical Strikes . | . . Average Slot Usage (%) 63 | . 63 Engine 2 | . 2 Core 6 | . 6 Wheel 19 | . 19 Hover 2 | . 2 Storage 12 | . 12 Energy Gun 9 | . 9 Ballistic Gun 9 | . 9 Naked Turns . | . . Heaviest Build 13 | 8 13 Greatest Support 26 | 3 26 Greatest Overweight (x) 2 | 2 2 Average Overweight (x) . | 1 . Largest Inventory Capacity 20 | 5 20 Average Capacity 7 | 5 7 Most Carried 7 | 2 7 Average Carried 2 | . 3 Final Capacity 8 | 5 8 Final Carried 5 | 1 5 Class Distribution -------------------- 100% | Mutant Dominant Class ---------------- Mutant | -10/Materials Resources | -11 -10 ----------- Run | Yrd Mat Matter Collected 302 | 183 119 Remotely . | . . Salvage Created 222 | . 222 Parts 19 | . 19 Haulers Intercepted . | . . Recyclers Shooed 1 | . 1 Parts Field Recycled . | . . Retrieved Matter . | . . Parts Self-Destructed . | . . Prevented . | . . Kills | -11 -10 ------- Run | Yrd Mat Combat Hostiles Destroyed 7 | . 7 Guns 4 | . 4 AOE 3 | . 3 Classes Destroyed 5 | . 5 Worker 1 | . 1 Builder 1 | . 1 Tunneler 1 | . 1 Swarmer 2 | . 2 Grunt 5 | . 5 Best Kill Streak 6 | . 6 Combat Bots Only 3 | . 3 Max Kills in Single Turn 3 | . 3 Gunslinging . | . . Exploded 1 | . 1 Melee . | . . Uniques/NPCs Destroyed . | . . Combat | -11 -10 -------- Run | Yrd Mat Hostile Shots Fired 79 | . 79 Missed 17 | . 17 Damage Taken 726 | . 726 Core 259 | . 259 Absorbed by Shields . | . . Core Remaining (%) 100 | 100 . Volleys Fired 33 | . 33 Largest 2 | . 2 Hottest 70 | . 70 Shots Fired 58 | . 58 Gun 53 | . 53 Cannon . | . . Launcher 5 | . 5 Special . | . . Kinetic 28 | . 28 Thermal 25 | . 25 Explosive 5 | . 5 Electromagnetic . | . . Robot Hit Streak 10 | . 10 Robot Miss Streak 5 | . 5 Penetration Max . | . . Secondary Targets . | . . Shots Hit Robots 35 | . 35 Core Hits 24 | . 24 Critical Kills . | . . Critical Parts Destroyed . | . . Critical Strikes 2 | . 2 Burn 2 | . 2 Melee Attacks . | . . Impact . | . . Slashing . | . . Piercing . | . . Sneak Attacks . | . . Combat Hostiles . | . . Follow-up Attacks . | . . Damage Inflicted 698 | . 698 Guns 331 | . 331 Cannons . | . . Explosions 338 | . 338 Melee . | . . Ramming 29 | . 29 Kinetic 134 | . 134 Thermal 197 | . 197 Explosive 338 | . 338 Electromagnetic . | . . Impact . | . . Slashing . | . . Piercing . | . . Highest Corruption . | . . Average Corruption . | . . Corruption Purged . | . . Corruption Blocked . | . . Overload Shots . | . . Overflow Damage 10 | . 10 Projectiles . | . . Explosions 10 | . 10 Melee . | . . Knockbacks . | . . Impact . | . . Kinetic . | . . Secondary . | . . Self-Inflicted Damage 85 | . 85 Shots 3 | . 3 Rammed 2 | . 2 Targets Rammed 2 | . 2 Kicked . | . . Crushed . | . . Highest Temperature 153 | . 153 Average Temperature 61 | . 61 Received Heat Transfer 246 | . 246 Siege Activations . | . . Robots Corrupted . | . . Combat Hostiles . | . . Parts Fried . | . . Impact Corruptions . | . . Robots Melted . | . . Combat Hostiles . | . . Parts Melted 1 | . 1 Heat Transferred 740 | . 740 Parts Sabotaged . | . . Parts Stolen . | . . Parts Stripped . | . . Power Chain Reactions . | . . Alert | -11 -10 ------- Run | Yrd Mat Peak Influence 238 | . 238 Initial . | . . Average 97 | . 115 Maximum Alert Level 1 | . 1 Low Security (%) 80 | 100 76 Level 1 20 | . 23 Level 2 . | . . Level 3 . | . . Level 4 . | . . Level 5 . | . . High Security . | . . Max Security . | . . Squads Dispatched 2 | . 2 Investigation . | . . Extermination . | . . Reinforcement 2 | . 2 Assault . | . . Garrison . | . . Intercept . | . . Searches Triggered . | . . Construction Impeded . | . . Haulers Reinforced . | . . Active Scanning Responses . | . . Cargo Convoy Interrupts . | . . Stealth | -11 -10 --------- Run | Yrd Mat Distress Signals 2 | . 2 Communications Jammed . | . . Distress Signals . | . . Times Spotted 19 | . 19 Peak Tracking Total 6 | . 6 Tactical Retreats . | . . Traps | -11 -10 ------- Run | Yrd Mat Traps Triggered . | . . Indirectly . | . . Trap Hack Attempts . | . . Triggered . | . . Disarmed . | . . Reprogrammed . | . . Reused . | . . Traps Extracted . | . . Installed . | . . Triggered . | . . Machines | -11 -10 ---------- Run | Yrd Mat Machines Disabled 2 | . 2 Max in Single Turn 1 | . 1 Machines Repaired . | . . Machines Dismantled . | . . Machines Sabotaged . | . . Overloaded Fab Kills . | . . Hacking | -11 -10 --------- Run | Yrd Mat Machines Accessed 1 | . 1 Terminals 1 | . 1 Fabricators . | . . Repair Stations . | . . Recycling Units . | . . Scanalyzers . | . . Garrison Access . | . . Total Hacks 2 | . 2 Successful 1 | . 1 Failed 1 | . 1 Catastrophic . | . . Database Lockouts . | . . Manual . | . . Terminals 2 | . 2 Fabricators . | . . Repair Stations . | . . Recycling Units . | . . Scanalyzers . | . . Garrison Access . | . . Terminal Hacks 1 | . 1 Emergency Access Points 1 | . 1 Fabricator Hacks . | . . Repair Station Hacks . | . . Recycling Unit Hacks . | . . Scanalyzer . | . . Garrison Access Hacks . | . . Unauthorized Hacks . | . . Terminals . | . . Fabricators . | . . Repair Stations . | . . Recycling Units . | . . Scanalyzers . | . . Garrison Access . | . . Data Cores Recovered . | . . Used . | . . Hacking Detections . | . . Full Trace Events . | . . Feedback Events . | . . Feedback Blocked . | . . Robot Schematics Acquired . | . . Robots Built . | . . Authchips . | . . Time . | . . Total Robot Build Rating . | . . Part Schematics Acquired . | . . Parts Built . | . . Authchips . | . . Time . | . . Total Part Build Rating . | . . Parts Repaired . | . . Time . | . . Parts Recycled . | . . Recycled Matter . | . . Retrieved Matter . | . . Retrieved Components . | . . Parts Scanalyzed . | . . Part Schematics Acquired . | . . Parts Damaged . | . . Bothacking | -11 -10 ------------ Run | Yrd Mat Used RIF Installer . | . . Robots Hacked . | . . Non-combat . | . . Combat . | . . Robot Hacks Applied . | . . Relay Couplers Released . | . . Fabnet Peak Effective % . | . . Robots Rewired . | . . Allies Hacked . | . . Hacks Repelled . | . . Allies | -11 -10 -------- Run | Yrd Mat Total Allies . | . . Largest Group . | . . Highest-Rated Group . | . . Highest-Rated Ally . | . . Total Orders . | . . Ally Attacks . | . . Total Damage . | . . Kills . | . . Allies Corrupted . | . . Allies Melted . | . . Intel | -11 -10 ------- Run | Yrd Mat Robot Analysis Total . | . . Derelict Logs Recovered . | . . Drone Launches . | . . Drone Recoveries . | . . Exploration | -11 -10 ------------- Run | Yrd Mat Turns Passed 360 | 58 302 Spaces Moved 230 | 42 188 Core 94 | 42 52 Treads . | . . Legs . | . . Wheels 94 | . 94 Hover 42 | . 42 Flight . | . . Fastest Speed 50 | 50 56 Average Speed 94 | 119 89 Slowest Speed 150 | 150 150 Overloaded Moves . | . . Propulsion Burnouts . | . . Robots Hopped . | . . Cave-ins Triggered . | . . Exploration Rate (%) 20 | 3 37 Regions Visited 1 Branch Regions . Pre-discovered Areas . | . . Known Exits Taken . | . . Unknown Exits Taken 1 | 1 . Scrap Searched . | . . Spaces Dug . | . . Terrain Destroyed 21 | . 21 Melee . | . . Projectile . | . . AOE 21 | . 21 Terrain Rammed 2 | . 2 Walls Destroyed . | . . Machines Disabled . | . . Actions | -11 -10 --------- Run | Yrd Mat Total 317 | 48 269 Wait 31 | . 31 Move 229 | 41 188 Hop . | . . Pick Up 8 | 2 6 Fast Attach 6 | 4 2 Attach 4 | 1 3 Detach . | . . Swap 1 | . 1 Drop 1 | . 1 Fire 33 | . 33 Melee . | . . Ram 4 | . 4 Kick . | . . Crush . | . . Escape Stasis . | . . Rewire . | . . Trap . | . . Miscellaneous . | . . Route ------- -11/Scrapyard -10/Materials History --------- Turn | Location | Event 13 | -11/Scrapyard | Discovered new exit (range 15) 59 | -11/Scrapyard | Entered Materials 292 | -10/Materials | Core integrity fell below 50% 303 | -10/Materials | Build established: Mutant 312 | -10/Materials | Core integrity fell below 20% 322 | -10/Materials | Lost 6 parts (1p2n3w) 361 | -10/Materials | Destroyed by G-34 Mercenary with Small Laser Last Messages --------------- 00291_ Grenade Launcher destroyed. 00291_ Destroyed Grenade Launcher. 00291_ Wheel destroyed. 00291_ Destroyed Wheel. 00291_ T-07 Excavator destroyed. 00293_ K-01 Serf collects debris. 00295_ Acquired 12 matter. 00298_ R-06 Scavenger collects Lgt. Assault Rifle. 00299_ Acquired 10 matter. 00300_ Slammed into Wall. 00301_ Slammed into R-06 Scavenger. 00302_ The unstable cave ceiling collapses. 00322_ Acquired Hcp. Storage Unit. 00324_ Dropped Hcp. Storage Unit. 00324_ Acquired Hcp. Storage Unit. 00331_ Acquired Hover Unit. 00338_ Slammed into Wall. 00338_ Destabilizing: Core damaged (-12). 00338_ Destabilizing: Core damaged (-2). 00354_ Slammed into K-01 Serf. Map ----- +----------------------------------------------------+ | #########??????# ####/#####??????????????????? | | ???????????????# # #??????????????????? | | ???????????????# # #??????????????????? | | ????????######## # #??????????????????? | | ???? # =!! !#??????????????????? | | ???? + !! #??????????????????? | | ???? """ # !! #??????????????????? | | ????####### """ # #??????????????????? | | ??????????# """ # #??????????????????? | | ??????????# # #??????????????????? | | ??????????# ####+#####??????????????????? | | ??????????# """ #??# #??????????????????????? | | ??????????# """ #??# #??????????????????????? | | ??????????# """ #??# #??????????????????????? | | ????????????? #??# #???????+??????????????? | | ????????????? #??# #??????? ??????????????? | | ??????????????"" #??# #??????? ??????????????? | | ??????????????"" #??# #??????? ??????????????? | | ???????????????" ???# #??????? ??????????????? | | ???????????????? ???# #??????# #?????????????? | | ?????????????????? ???#g#??????/ ?????????????? | | ????????????????????????# #??????# #?????????????? | | ????????????????????????# #??????# #?????????????? | | ????????????????????????# #??????# #?????????????? | | ????????????????????????# #??????# #?????????????? | | ????????????????????????#@######## #?????????????? | | ????????????????????????# #?????????????? | | ????????????????????????##########+####??????????? | | ???????????????????????????????# #??????????? | | ???????????????????????????????# #??????????? | | ???????????????????????????????# """ #??????????? | | ???????????????????????????????# """ #??????????? | | ???????????????????????????????# """ #??????????? | | ???????????????????????????????# #??????????? | | ???????????????????????????????########??????????? | | ?????????????????????????????????????????????????? | | ?????????????????????????????????????????????????? | | | | | | | | | | | | | | | | | | | | | | | | | | | +----------------------------------------------------+ Best States ------------- Heat Dissipation 25 Energy Generation 14 Energy Capacity 250 Matter Stores 300 Matter Capacity 300 Sight Range 16 Terrain Scan Density 10 Evasion (%) 53 Item Schematics ----------------- None Robot Schematics ------------------ None Fabricated ------------ Nothing Alien Tech Used ----------------- None Achievements -------------- None Challenges ------------ None Game ------ Seed BiometalRefineryCompactor Manual? 0 Play Time 00:09:04 Cumulative 159.6 hours Start 2024.03.15 @ 15:38:59 End 2024.03.15 @ 15:43:52 Sessions 1 Manual Loads 0 Difficulty Rogue Special Mode None Game No. 111 Rogue 99 Adventurer 12 Explorer 0 Win Type - Total 1 Types 1/0/0/0/0/0/0/0/0 Lore% 23 Gallery% 38 Achievement% 30 Wizard Run 0 Options --------- Layout 1 ASCII 0 Keyboard 0 Movement Mouse Keybinds 0 Fullscreen 1 Font 32/SmallcapsGlow Map View 77x35 Zoom Use 0% Tactical HUD 1 Map Filters NONE Filters NONE Steam 1 RUN: 6a0d5481-5d9a-49f2-b532-6bd631c632f0